bitfinex/quotes_BTCUSD_20260126
["timestamp","ask_amount","ask_price","bid_price","bid_amount"]
[1769398263182,0.01144112,87404.0,87391.0,0.12345178]
[1769398263750,0.02860313,87403.0,87391.0,0.12345178]
[1769398263951,0.02860346,87402.0,87391.0,0.12345178]
[1769398264151,0.02860313,87403.0,87391.0,0.12345178]
[1769398264362,0.01144112,87404.0,87391.0,0.12345178]
[1769398265855,0.01191039,87405.0,87391.0,0.12345178]
[1769398266050,0.01144112,87404.0,87391.0,0.93727322]
[1769398266278,0.01144112,87404.0,87392.0,0.13241962]
[1769398266456,0.0004694,87405.0,87392.0,0.13241962]
[1769398266663,0.0004694,87405.0,87393.0,0.11976547]
[1769398266874,0.0004694,87405.0,87394.0,0.13241933]
[1769398267823,0.0004694,87405.0,87396.0,0.11976547]
[1769398268018,0.0004694,87405.0,87398.0,0.11976547]
[1769398268831,0.006364,87398.0,87390.0,0.51480178]
[1769398269121,0.0004694,87405.0,87394.0,0.11976547]
[1769398269394,0.00713097,87422.0,87405.0,0.0004694]
[1769398269532,0.01143955,87416.0,87405.0,0.12023487]
[1769398269731,0.1137781,87415.0,87405.0,0.11976547]
[1769398269937,0.01143929,87418.0,87405.0,0.11976547]
[1769398270137,0.12521981,87417.0,87405.0,0.11976547]
[1769398270333,0.11378039,87416.0,87405.0,0.11976547]
[1769398270731,0.01143955,87416.0,87405.0,0.11976547]
[1769398271717,0.01143968,87415.0,87405.0,0.11976547]
[1769398271915,0.01143981,87414.0,87405.0,0.11976547]
[1769398272858,0.01143994,87413.0,87405.0,0.11976547]
[1769398273189,0.01143902,87420.0,87405.0,0.11976547]
[1769398273391,0.17099764,87419.0,87405.0,0.11976547]
[1769398273599,0.01144086,87406.0,87382.0,0.93727322]
[1769398273763,0.01144086,87406.0,87390.0,0.63456725]
[1769398273764,0.00692487,87406.0,87390.0,0.63456725]
[1769398273968,0.06607633,87406.0,87390.0,0.63456725]
[1769398274370,0.02031288,87406.0,87391.0,0.14265112]
[1769398274543,0.00887202,87406.0,87391.0,0.14265112]
[1769398274750,0.00692487,87406.0,87391.0,0.14265112]
[1769398274918,0.00194715,87408.0,87391.0,0.14265112]
[1769398275250,0.0114406,87408.0,87395.0,0.11976547]
[1769398275446,0.0114406,87408.0,87397.0,0.11976547]
[1769398275648,0.01144073,87407.0,87398.0,0.02288381]
[1769398275848,0.01144086,87406.0,87398.0,0.02288381]
[1769398276051,0.01144073,87407.0,87398.0,0.02288381]
[1769398276282,0.01144086,87406.0,87398.0,0.02288381]
[1769398276620,0.01144073,87407.0,87398.0,0.02288381]
[1769398276817,0.01143968,87415.0,87398.0,0.02288381]
[1769398277005,0.01144007,87412.0,87398.0,0.02288381]
[1769398277204,0.0114402,87411.0,87400.0,0.51480178]
[1769398277445,0.0114402,87411.0,87401.0,0.02288303]
[1769398277600,0.01144007,87412.0,87401.0,0.02288303]
[1769398278312,0.0114402,87411.0,87401.0,0.02288303]
[1769398278531,0.06863991,87413.0,87401.0,0.02288303]
[1769398278532,0.01143994,87413.0,87401.0,0.02288303]
[1769398278734,0.01143955,87416.0,87403.0,0.94576417]
[1769398278982,0.01143955,87416.0,87406.0,0.12776171]
[1769398279186,0.01143942,87417.0,87406.0,0.12776171]
[1769398279433,0.12527229,87416.0,87406.0,0.12776171]
[1769398279602,0.11383274,87415.0,87406.0,0.12776171]
[1769398279809,0.11383274,87414.0,87406.0,0.12776171]
[1769398280052,0.0114385,87424.0,87415.0,0.12776171]
[1769398280185,0.00194715,87423.0,87415.0,0.12776171]
[1769398280586,0.01143863,87423.0,87415.0,0.12776171]
[1769398280814,0.01359201,87422.0,87415.0,0.12776171]
[1769398281235,0.01143902,87420.0,87410.0,0.51480178]
[1769398281437,0.01143902,87420.0,87410.0,0.64256349]
[1769398282778,0.01143889,87421.0,87410.0,0.64256349]
[1769398282929,0.01338617,87420.0,87410.0,0.64256349]
[1769398283125,0.01338617,87420.0,87410.0,0.12776171]
[1769398283366,0.00194715,87421.0,87410.0,0.12776171]
[1769398283570,0.00194715,87421.0,87411.0,1.07352588]
[1769398283944,0.01338604,87421.0,87411.0,1.07352588]
[1769398284126,0.01338604,87421.0,87411.0,0.12776171]
[1769398284127,0.00194715,87421.0,87411.0,0.12776171]
[1769398284326,0.01143902,87420.0,87411.0,0.12776171]
[1769398284575,0.01338604,87421.0,87411.0,0.12776171]
[1769398284779,0.00194715,87421.0,87411.0,0.12776171]
[1769398284999,0.00194715,87421.0,87411.0,0.11376171]
[1769398286154,0.0002061,87422.0,87413.0,0.12776171]
[1769398287321,0.0002061,87422.0,87413.0,0.94576417]
[1769398287531,0.0002061,87422.0,87414.0,0.12776171]
[1769398290169,0.0002061,87422.0,87415.0,0.12776171]
[1769398290919,0.0002061,87422.0,87415.0,0.14832646]
[1769398291119,0.01143745,87432.0,87423.0,0.12776171]
[1769398291328,0.01157819,87432.0,87423.0,0.12776171]
[1769398291729,0.00014074,87432.0,87423.0,0.12776171]
[1769398291935,0.00014074,87432.0,87424.0,0.12776171]
[1769398292140,0.00014074,87432.0,87425.0,0.94576417]
[1769398292382,0.00014074,87432.0,87428.0,0.12776171]
[1769398292596,0.00014074,87432.0,87429.0,0.12776171]
[1769398296531,0.00014074,87432.0,87424.0,0.02287701]
[1769398296736,0.00014074,87432.0,87424.0,0.14889826]
[1769398297007,0.00014074,87432.0,87424.0,0.9374621]
[1769398297209,0.00014074,87432.0,87425.0,0.12602125]
[1769398297624,0.00014074,87432.0,87425.0,0.91458509]
[1769398297825,0.00014074,87432.0,87426.0,0.12602125]
[1769398298986,0.00014074,87432.0,87426.0,0.14889773]
[1769398300570,0.00014074,87432.0,87428.0,0.12602125]
[1769398301237,0.00804533,87430.0,87416.0,0.17572]
[1769398301445,0.00804533,87430.0,87417.0,0.00653246]
[1769398301649,0.01143824,87426.0,87417.0,0.00653246]
[1769398301801,0.0114385,87424.0,87416.0,0.17572]
[1769398302003,0.01143824,87426.0,87416.0,0.17572]
[1769398302703,0.01143837,87425.0,87416.0,0.17572]
[1769398302903,0.01143876,87422.0,87416.0,0.17572]
[1769398303121,0.01143863,87423.0,87416.0,0.17572]
[1769398303959,0.01143981,87414.0,87405.0,0.12602125]
[1769398304117,0.01143968,87415.0,87405.0,0.12602125]
[1769398304320,0.01143981,87414.0,87405.0,0.12602125]
[1769398304787,0.01143968,87415.0,87405.0,0.12602125]
[1769398305208,0.01948449,87419.0,87405.0,0.12602125]
[1769398305380,0.01143942,87417.0,87405.0,0.12602125]
[1769398305745,0.01948449,87419.0,87405.0,0.12602125]
[1769398305947,0.00804533,87419.0,87405.0,0.12602125]
[1769398306152,0.01143929,87418.0,87405.0,0.12602125]
[1769398306467,0.08282155,87423.0,87405.0,0.12602125]
[1769398306829,0.01151934,87421.0,87405.0,0.12602125]
[1769398307247,0.01143955,87416.0,87405.0,0.12602125]
[1769398308036,0.01143968,87415.0,87404.0,0.0001721]
[1769398308392,0.22877281,87423.0,87390.0,0.5147006]
[1769398308393,0.00759331,87406.0,87398.0,0.17572]
[1769398308808,0.0114406,87408.0,87398.0,0.17572]
[1769398309024,0.0114406,87408.0,87394.0,0.12602125]
[1769398309243,0.01144099,87405.0,87391.0,0.02140137]
[1769398309670,0.01144099,87405.0,87391.0,0.14742262]
[1769398310125,0.01144125,87403.0,87391.0,0.14742262]
[1769398310553,0.01144125,87403.0,87391.0,0.12649065]
[1769398310774,0.01144164,87400.0,87391.0,0.12649065]
[1769398311062,0.01144151,87401.0,87391.0,0.12649065]
[1769398311269,0.01144151,87401.0,87392.0,0.02254538]
[1769398311447,0.01144138,87402.0,87392.0,0.02254538]
[1769398311683,0.01144125,87403.0,87392.0,0.02254538]
[1769398311883,0.01144138,87402.0,87392.0,0.02254538]
[1769398312091,0.01144151,87401.0,87392.0,0.02254538]
[1769398312516,0.01144138,87402.0,87392.0,0.02254538]
[1769398312728,0.01144125,87403.0,87392.0,0.02254538]
[1769398312869,0.01144086,87406.0,87393.0,0.12602125]
[1769398313081,0.01144046,87409.0,87397.0,0.91458509]
[1769398313281,0.0114406,87408.0,87398.0,0.14627669]
[1769398313651,0.06863902,87414.0,87398.0,0.14627669]
[1769398313865,0.01143955,87416.0,87402.0,0.12602125]
[1769398314071,0.01143981,87414.0,87404.0,0.12602125]
[1769398314268,0.01143968,87415.0,87406.0,0.12602125]
[1769398314466,0.01143994,87413.0,87407.0,0.02025334]
[1769398314675,0.01143981,87414.0,87407.0,0.02025334]
[1769398315138,0.01143955,87416.0,87407.0,0.02025334]
[1769398315960,0.01143968,87415.0,87407.0,0.02025334]
[1769398316180,0.01143981,87414.0,87407.0,0.02025334]
[1769398316455,0.01143955,87416.0,87407.0,0.02025334]
[1769398316662,0.01143994,87413.0,87407.0,0.02025334]
[1769398317337,0.01144007,87412.0,87407.0,0.02025334]
[1769398317553,0.01143994,87413.0,87407.0,0.02025334]
[1769398317915,0.01144007,87412.0,87407.0,0.02025334]
[1769398318099,0.0114402,87411.0,87407.0,0.02025334]
[1769398318296,0.01144007,87412.0,87407.0,0.02025334]
[1769398318548,0.02287622,87413.0,87401.0,0.1462746]
[1769398318760,0.03431616,87413.0,87401.0,0.1462746]
[1769398319230,0.01144007,87412.0,87401.0,0.1462746]
[1769398319431,0.02287622,87413.0,87401.0,0.1462746]
[1769398319839,0.03431616,87413.0,87401.0,0.1462746]
[1769398320458,0.02287622,87413.0,87401.0,0.1462746]
[1769398320663,0.02287622,87413.0,87401.0,0.14531065]
[1769398320861,0.02287622,87413.0,87401.0,0.12602125]
[1769398321061,0.03431603,87414.0,87401.0,0.13427866]
[1769398321243,0.01144007,87412.0,87401.0,0.12602125]
[1769398321447,0.02287622,87412.0,87401.0,0.13427866]
[1769398321649,0.01143981,87414.0,87402.0,0.91458509]
[1769398321841,0.01143968,87415.0,87403.0,0.1354226]
[1769398322256,0.01143929,87418.0,87403.0,0.1354226]
[1769398322257,0.01143929,87418.0,87404.0,0.91458509]
[1769398322558,0.01143968,87415.0,87405.0,0.13542238]
[1769398322758,0.01144046,87409.0,87396.0,0.17576]
[1769398322962,0.01903377,87409.0,87396.0,0.17576]
[1769398323431,0.01903377,87409.0,87395.0,0.17576]
[1769398323995,0.0114406,87408.0,87395.0,0.28689711]
[1769398325065,0.0114406,87408.0,87395.0,0.11113711]
[1769398325268,0.0114406,87408.0,87395.0,0.28689711]
[1769398325484,0.06864226,87410.0,87395.0,0.28689711]
[1769398325485,0.01144033,87410.0,87398.0,0.5144803]
[1769398325658,0.01144033,87410.0,87399.0,0.11113711]
[1769398325863,0.0114402,87411.0,87399.0,0.11113711]
[1769398326104,0.02287622,87412.0,87399.0,0.11113711]
[1769398326364,0.02287622,87412.0,87400.0,0.84191858]
[1769398326648,0.01144007,87412.0,87401.0,0.11113711]
[1769398327007,0.01144033,87410.0,87401.0,0.11113711]
[1769398327208,0.03431642,87411.0,87401.0,0.11113711]
[1769398327416,0.02287622,87411.0,87401.0,0.11113711]
[1769398327603,0.02287622,87412.0,87401.0,0.11113711]
[1769398328457,0.03431616,87413.0,87401.0,0.11113711]
[1769398329014,0.02287622,87413.0,87401.0,0.11113711]
[1769398329629,0.01144007,87412.0,87401.0,0.11113711]
[1769398330014,0.02287622,87411.0,87401.0,0.11113711]
[1769398330219,0.03431616,87413.0,87401.0,0.11113711]
[1769398330731,0.02287622,87413.0,87401.0,0.11113711]
[1769398331494,0.03431616,87413.0,87401.0,0.11113711]
[1769398331695,0.02287622,87413.0,87401.0,0.11113711]
[1769398332122,0.03431616,87413.0,87401.0,0.11113711]
[1769398332332,0.01144007,87412.0,87401.0,0.11113711]
[1769398332502,0.02287622,87411.0,87401.0,0.11113711]
[1769398332732,0.02287622,87412.0,87401.0,0.11113711]
[1769398332910,0.02287622,87411.0,87401.0,0.11113711]
[1769398333093,0.03431616,87413.0,87401.0,0.11113711]
[1769398333298,0.02287622,87413.0,87401.0,0.11113711]
[1769398333543,0.03431616,87413.0,87401.0,0.11113711]
[1769398333779,0.09151589,87413.0,87401.0,0.11113711]
[1769398334144,0.03431616,87413.0,87401.0,0.11113711]
[1769398334351,0.01144007,87412.0,87401.0,0.11113711]
[1769398334526,0.02287622,87411.0,87401.0,0.11113711]
[1769398334738,0.02287622,87412.0,87401.0,0.11113711]
[1769398335133,0.03431629,87412.0,87403.0,0.11113711]
[1769398335736,0.0114402,87411.0,87403.0,0.11113711]
[1769398335942,0.03431629,87412.0,87403.0,0.11113711]
[1769398336600,0.02287622,87412.0,87403.0,0.11113711]
[1769398336800,0.03431629,87412.0,87403.0,0.11113711]
[1769398337005,0.02287622,87412.0,87403.0,0.11113711]
[1769398337644,0.01143942,87417.0,87403.0,0.11113711]
[1769398337839,0.01143955,87416.0,87403.0,0.11113711]
[1769398338123,0.01143981,87414.0,87403.0,0.11113711]
[1769398338488,0.01144007,87412.0,87403.0,0.11113711]
[1769398339120,0.0114402,87411.0,87403.0,0.11113711]
[1769398339720,0.01144007,87412.0,87403.0,0.11113711]
[1769398339916,0.0114402,87411.0,87403.0,0.11113711]
[1769398340196,0.01144046,87409.0,87403.0,0.11113711]
[1769398340393,0.01144033,87410.0,87403.0,0.11113711]
[1769398340573,0.01144033,87410.0,87398.0,0.10889841]
[1769398340976,0.0114402,87411.0,87398.0,0.10889841]
[1769398341314,0.01144007,87412.0,87399.0,0.10889841]
[1769398341556,0.06863898,87414.0,87399.0,0.10889841]
[1769398341731,0.01143994,87413.0,87399.0,0.10889841]
[1769398341937,0.06863982,87413.0,87399.0,0.10889841]
[1769398342497,0.0114402,87411.0,87399.0,0.10889841]
[1769398342686,0.01144033,87410.0,87399.0,0.10889841]
[1769398342883,0.0114402,87411.0,87399.0,0.10889841]
[1769398343083,0.01144046,87409.0,87399.0,0.10889841]
[1769398343310,0.0114406,87408.0,87399.0,0.10889841]
[1769398343955,0.01144073,87407.0,87399.0,0.10889841]
[1769398344413,0.01144086,87406.0,87399.0,0.10889841]
[1769398344633,0.01144073,87407.0,87399.0,0.10889841]
[1769398345045,0.01144086,87406.0,87393.0,0.17576]
[1769398345381,0.01144112,87404.0,87393.0,0.17576]
[1769398345510,0.01144112,87404.0,87393.0,0.28465841]
[1769398345710,0.01144125,87403.0,87393.0,0.10889841]
[1769398345911,0.01144112,87404.0,87393.0,0.10889841]
[1769398346341,0.01144125,87403.0,87393.0,0.10889841]
[1769398346544,0.01144112,87404.0,87393.0,0.10889841]
[1769398346721,0.9064398,87617.0,87393.0,0.10889841]
[1769398346722,0.01144046,87409.0,87393.0,0.10889841]
[1769398346935,0.01144086,87406.0,87393.0,0.10889841]
[1769398347136,0.01144112,87404.0,87393.0,0.10889841]
[1769398347530,0.01144125,87403.0,87393.0,0.10889841]
[1769398347734,0.01144112,87404.0,87393.0,0.10889841]
[1769398348525,0.01144151,87401.0,87393.0,0.10889841]
[1769398349054,0.01144138,87402.0,87393.0,0.10889841]
[1769398349494,0.01144177,87399.0,87392.0,5.0]
[1769398349696,0.01144164,87400.0,87392.0,5.0]
[1769398349872,0.01144177,87399.0,87392.0,5.0]
[1769398350275,0.01144164,87400.0,87392.0,5.0]
[1769398350654,0.01144138,87402.0,87392.0,5.0]
[1769398350849,0.01144151,87401.0,87392.0,5.0]
[1769398351603,0.01144138,87402.0,87392.0,5.0]
[1769398351810,0.01144099,87405.0,87393.0,0.02288512]
[1769398352140,0.01144112,87404.0,87393.0,0.02288512]
[1769398352925,0.01144099,87405.0,87393.0,0.02288512]
[1769398354018,0.01144112,87404.0,87393.0,0.02310002]
[1769398354233,0.01144125,87403.0,87393.0,0.02310002]
[1769398354552,0.01144112,87404.0,87393.0,0.02310002]
[1769398354919,0.01144125,87403.0,87393.0,0.02310002]
[1769398355287,0.01144112,87404.0,87393.0,0.02310002]
[1769398356214,0.01144151,87401.0,87393.0,0.02310002]
[1769398356418,0.01144164,87400.0,87393.0,0.02310002]
[1769398356646,0.01144138,87402.0,87393.0,0.02310002]
[1769398356988,0.01144138,87402.0,87393.0,0.0002149]
[1769398357204,0.01144151,87401.0,87393.0,0.0002149]
[1769398357402,0.01144138,87402.0,87393.0,0.0002149]
[1769398358374,0.01144151,87401.0,87393.0,0.0002149]
[1769398358951,0.01144138,87402.0,87393.0,0.02310002]
[1769398359155,0.01144138,87402.0,87393.0,0.0002149]
[1769398359718,0.01144125,87403.0,87393.0,0.0002149]
[1769398360061,0.01144112,87404.0,87393.0,0.0002149]
[1769398360403,0.00888237,87404.0,87393.0,0.0002149]
[1769398360632,0.01144099,87405.0,87393.0,0.01743441]
[1769398360828,0.01144086,87406.0,87393.0,0.01743441]
[1769398361134,0.01144099,87405.0,87393.0,0.01743441]
[1769398361894,0.01144112,87404.0,87393.0,0.01743441]
[1769398362141,0.01144099,87405.0,87393.0,0.01743441]
[1769398362419,0.00558007,87404.0,87392.0,4.98252016]
[1769398362619,0.00558007,87404.0,87393.0,0.02288512]
[1769398362830,0.01702119,87404.0,87393.0,0.02288512]
[1769398363020,0.01144125,87403.0,87393.0,0.02288512]
[1769398363319,0.00558007,87402.0,87392.0,5.09761144]
[1769398363464,0.00558007,87403.0,87392.0,5.09761144]
[1769398364108,0.01702132,87403.0,87392.0,5.09761144]
[1769398364502,0.01144138,87402.0,87392.0,5.09761144]
[1769398364701,0.00558007,87401.0,87392.0,5.09761144]
[1769398365108,0.01702145,87402.0,87392.0,5.09761144]
[1769398365307,0.01144151,87401.0,87392.0,5.09761144]
[1769398365637,0.01702145,87402.0,87392.0,5.09761144]
[1769398365870,0.01144151,87401.0,87392.0,5.09761144]
[1769398366088,0.01702145,87402.0,87392.0,5.09761144]
[1769398366297,0.01144151,87401.0,87392.0,5.09761144]
[1769398366921,0.01144164,87400.0,87392.0,5.09761144]
[1769398367135,0.01144151,87401.0,87392.0,5.09761144]
[1769398367902,0.01702145,87402.0,87392.0,5.09761144]
[1769398368719,0.00558007,87402.0,87392.0,5.09761144]
[1769398369135,0.00558007,87403.0,87392.0,5.09761144]
[1769398369338,0.01702132,87403.0,87392.0,5.09761144]
[1769398369713,0.00558007,87403.0,87393.0,0.02288512]
[1769398369913,0.01144086,87406.0,87393.0,0.02288512]
[1769398370380,0.01144099,87405.0,87393.0,0.02288512]
[1769398370563,0.01144086,87406.0,87393.0,0.11509128]
[1769398371089,0.01144099,87405.0,87393.0,0.11509128]
[1769398372225,0.01144112,87404.0,87393.0,0.11509128]
[1769398372364,0.01144099,87405.0,87393.0,0.11509128]
[1769398373125,0.0686456,87406.0,87393.0,0.11509128]
[1769398373319,0.01144112,87404.0,87394.0,0.02288486]
[1769398373729,0.01144138,87402.0,87394.0,0.01708486]
[1769398373932,0.06300687,87403.0,87392.0,4.98252016]
[1769398373933,0.0058,87401.0,87392.0,4.98252016]
[1769398374156,0.01724138,87402.0,87392.0,4.98252016]
[1769398374349,0.01144164,87400.0,87392.0,4.98252016]
[1769398374578,0.01144151,87401.0,87392.0,4.98252016]
[1769398374736,0.0058,87400.0,87392.0,4.98252016]
[1769398374932,0.01144164,87400.0,87392.0,4.98252016]
[1769398375140,0.0058,87401.0,87392.0,4.98252016]
[1769398375560,0.01724151,87401.0,87392.0,4.98252016]
[1769398375770,0.0058,87401.0,87392.0,4.98252016]
[1769398376170,0.0058,87402.0,87392.0,4.98252016]
[1769398376383,0.01144112,87404.0,87393.0,0.02288512]
[1769398376930,0.06864641,87405.0,87393.0,0.02288512]
[1769398376931,0.01144099,87405.0,87393.0,0.02288512]
[1769398377308,0.01144125,87403.0,87392.0,4.97683513]
[1769398377516,0.01159497,87402.0,87392.0,4.97683513]
[1769398377720,0.01159497,87403.0,87393.0,0.01814293]
[1769398377872,0.01159497,87402.0,87393.0,0.01814293]
[1769398378081,0.01159497,87405.0,87393.0,0.01814293]
[1769398378281,0.01159497,87405.0,87394.0,0.11509128]
[1769398378489,0.01159497,87408.0,87396.0,0.11509128]
[1769398378715,0.01143863,87423.0,87408.0,0.01]
[1769398378887,0.01158452,87417.0,87408.0,0.01]
[1769398379084,0.01158452,87417.0,87406.0,0.11509128]
[1769398379311,0.01143955,87416.0,87406.0,0.11509128]
[1769398379744,0.01143968,87415.0,87406.0,0.11509128]
[1769398380089,0.01143994,87413.0,87406.0,0.11509128]
[1769398380223,0.01144086,87406.0,87393.0,0.83438378]
[1769398380422,0.06864287,87409.0,87396.0,0.11509128]
[1769398380659,0.01144086,87406.0,87397.0,0.11509128]
[1769398380869,0.01144073,87407.0,87397.0,0.11509128]
[1769398381271,0.01144099,87405.0,87397.0,0.11509128]
[1769398381475,0.01144112,87404.0,87397.0,0.11509128]
[1769398381877,0.01144099,87405.0,87397.0,0.11509128]
[1769398382135,0.01144099,87405.0,87398.0,0.94947506]
[1769398382339,0.01144086,87406.0,87398.0,0.94947506]
[1769398382546,0.01144073,87407.0,87398.0,0.94947506]
[1769398382701,0.0114402,87411.0,87399.0,0.11509128]
[1769398383045,0.01144007,87412.0,87401.0,0.11509128]
[1769398383253,0.0114402,87411.0,87401.0,0.11509128]
[1769398383748,0.06864206,87410.0,87401.0,0.13797431]
[1769398383990,0.0114406,87408.0,87401.0,0.11509128]
[1769398384164,0.01144086,87406.0,87401.0,0.11509128]
[1769398384378,0.01144086,87406.0,87401.0,0.87107967]
[1769398384604,0.0114406,87408.0,87403.0,0.10573989]
[1769398384811,0.01144073,87407.0,87403.0,0.08833989]
[1769398385180,0.0114406,87408.0,87403.0,0.08833989]
[1769398385403,0.01144046,87409.0,87403.0,0.08833989]
[1769398385596,0.01144033,87410.0,87403.0,0.08833989]
[1769398386007,0.0114402,87411.0,87403.0,0.08833989]
[1769398386207,0.01144046,87409.0,87403.0,0.08833989]
[1769398386403,0.01144033,87410.0,87403.0,0.08833989]
[1769398386872,0.01144007,87412.0,87403.0,0.08833989]
[1769398387048,0.01143968,87415.0,87406.0,0.87107967]
[1769398387230,0.01143955,87416.0,87407.0,0.11153989]
[1769398387854,0.01158452,87417.0,87407.0,0.11153989]
[1769398388074,0.01143955,87416.0,87407.0,0.11153989]
[1769398388266,0.01158452,87417.0,87407.0,0.11153989]
[1769398388593,0.01143955,87416.0,87407.0,0.11153989]
[1769398388795,0.01158452,87417.0,87407.0,0.11153989]
[1769398389130,0.0001451,87417.0,87407.0,0.11153989]
[1769398389376,0.01158452,87417.0,87407.0,0.11153989]
[1769398389930,0.0001451,87417.0,87407.0,0.11153989]
[1769398390313,0.01158452,87417.0,87407.0,0.11153989]
[1769398390465,0.01143968,87415.0,87407.0,0.11153989]
[1769398390725,0.01143955,87416.0,87407.0,0.11153989]
[1769398390904,0.01158452,87417.0,87407.0,0.11153989]
[1769398391327,0.01143955,87416.0,87407.0,0.11153989]
[1769398391843,0.01143981,87414.0,87407.0,0.11153989]
[1769398392206,0.01143994,87413.0,87407.0,0.11153989]
[1769398392407,0.01143981,87414.0,87407.0,0.11153989]
[1769398393024,0.01143981,87414.0,87399.0,0.87107967]
[1769398393025,0.0114402,87411.0,87399.0,0.87107967]
[1769398393227,0.01144033,87410.0,87400.0,0.11153989]
[1769398393429,0.01144046,87409.0,87400.0,0.11153989]
[1769398393727,0.01144073,87407.0,87400.0,0.11153989]
[1769398394272,0.21653982,87414.0,87400.0,0.11153989]
[1769398394497,0.01144046,87409.0,87400.0,0.11153989]
[1769398394842,0.01144073,87407.0,87400.0,0.11153989]
[1769398395049,0.0114406,87408.0,87400.0,0.11153989]
[1769398396899,0.01144046,87409.0,87400.0,0.11153989]
[1769398397104,0.01144033,87410.0,87400.0,0.11153989]
[1769398397351,0.01144046,87409.0,87400.0,0.11153989]
[1769398397580,0.0114406,87408.0,87400.0,0.11153989]
[1769398399185,0.01144073,87407.0,87400.0,0.11153989]
[1769398399403,0.0114406,87408.0,87400.0,0.11153989]
[1769398399631,0.01144073,87407.0,87400.0,0.11153989]
[1769398399820,0.0114406,87408.0,87400.0,0.11153989]
[1769398400191,0.01144073,87407.0,87400.0,0.11153989]
[1769398400942,0.01144086,87406.0,87400.0,0.11153989]
[1769398401332,0.01144073,87407.0,87400.0,0.11153989]
[1769398402316,0.0114406,87408.0,87400.0,0.11153989]
[1769398402545,0.01144099,87405.0,87400.0,0.11153989]
[1769398402663,0.01144086,87406.0,87400.0,0.11153989]
[1769398403565,0.01144073,87407.0,87400.0,0.11153989]
[1769398403812,0.0114406,87408.0,87392.0,4.97683513]
[1769398403813,0.01144099,87405.0,87393.0,0.80673076]
[1769398404155,0.01144086,87406.0,87393.0,0.80673076]
[1769398404353,0.01144099,87405.0,87396.0,0.11125328]
[1769398404485,0.01144086,87406.0,87397.0,0.11125328]
[1769398404681,0.01144073,87407.0,87397.0,0.80673076]
[1769398404888,0.01144073,87407.0,87398.0,0.11125328]
[1769398405083,0.01144086,87406.0,87398.0,0.11125328]
[1769398405282,0.01144099,87405.0,87398.0,0.11125328]
[1769398405512,0.01144073,87407.0,87398.0,0.11125328]
[1769398406963,0.01144086,87406.0,87398.0,0.11125328]
[1769398407164,0.05720293,87409.0,87398.0,0.11125328]
[1769398407369,0.01144073,87407.0,87398.0,0.11125328]
[1769398407572,0.0114406,87408.0,87398.0,0.11125328]
[1769398407983,0.22879583,87415.0,87392.0,4.97683513]
[1769398407984,0.0114423,87395.0,87392.0,4.97683513]
[1769398408159,0.00574276,87393.0,87392.0,4.81049615]
[1769398408364,0.12359083,87393.0,87392.0,4.80861855]
[1769398408562,0.12359083,87393.0,87392.0,4.80674095]
[1769398408765,0.1292888,87407.0,87392.0,4.80037437]
[1769398408963,0.01144007,87412.0,87396.0,0.80673076]
[1769398409168,0.01144046,87409.0,87398.0,0.80673076]
[1769398409434,0.01144073,87407.0,87398.0,0.80673076]
[1769398409644,0.0114406,87408.0,87398.0,0.80673076]
[1769398409867,0.01144073,87407.0,87395.0,0.11125328]
[1769398410073,0.06864082,87412.0,87395.0,0.11125328]
[1769398410074,0.05720646,87403.0,87395.0,0.11125328]
[1769398410264,0.01144177,87399.0,87392.0,4.80037437]
[1769398410406,0.0114419,87398.0,87392.0,4.80037437]
[1769398410827,0.01144177,87399.0,87392.0,4.80037437]
[1769398411037,0.01144204,87397.0,87392.0,4.80037437]
[1769398411361,0.0114423,87395.0,87392.0,4.80037437]
[1769398411568,0.0114423,87395.0,87392.0,4.79967027]
[1769398411569,0.00574276,87394.0,87392.0,4.79967027]
[1769398411847,0.00574356,87397.0,87392.0,4.79577835]
[1769398412237,0.0114419,87398.0,87392.0,4.79577835]
[1769398412440,0.0114423,87395.0,87392.0,4.79577835]
[1769398412641,0.1293478,87395.0,87392.0,4.79577835]
[1769398412842,0.1293478,87395.0,87392.0,4.79460485]
[1769398413082,0.12929037,87395.0,87392.0,4.79296195]
[1769398413242,0.0114423,87395.0,87392.0,4.79131905]
[1769398413458,0.0114423,87395.0,87392.0,4.78944145]
[1769398413779,0.0114423,87395.0,87392.0,4.78662505]
[1769398413918,0.0114423,87395.0,87392.0,4.78474745]
[1769398414124,0.0114423,87395.0,87392.0,4.77919272]
[1769398415082,0.0114423,87395.0,87392.0,4.77872332]
[1769398415241,0.0114423,87395.0,87392.0,4.77708042]
[1769398415449,0.0114423,87395.0,87392.0,4.77614162]
[1769398415649,0.0114423,87395.0,87392.0,4.77449872]
[1769398415859,0.0114423,87395.0,87392.0,4.77262112]
[1769398416060,0.0114423,87395.0,87392.0,4.77074352]
[1769398416310,0.0114423,87395.0,87392.0,4.76886592]
[1769398416512,0.01144217,87396.0,87392.0,4.76698832]
[1769398416688,0.0114423,87395.0,87392.0,4.76511072]
[1769398416848,0.0114423,87395.0,87392.0,4.76323312]
[1769398417044,0.0114423,87395.0,87392.0,4.76135552]
[1769398417273,0.0114423,87395.0,87392.0,4.76065142]
[1769398417458,0.0114423,87395.0,87392.0,4.75853912]
[1769398417651,0.0114423,87395.0,87392.0,4.75666152]
[1769398417926,0.12755537,87397.0,87392.0,4.75478392]
[1769398418210,0.0114423,87395.0,87392.0,4.72978821]
[1769398418462,0.0114423,87395.0,87392.0,4.72791061]
[1769398418613,0.0114423,87395.0,87392.0,4.72579831]
[1769398418777,0.0114423,87395.0,87392.0,4.72392071]
[1769398418986,0.01144204,87397.0,87392.0,4.72204311]
[1769398419182,0.12755537,87397.0,87392.0,4.72016551]
[1769398419382,0.0114423,87395.0,87392.0,4.71828791]
[1769398419595,0.0114423,87395.0,87392.0,4.71617561]
[1769398419944,0.01144217,87396.0,87392.0,4.71359391]
[1769398420150,0.01144217,87396.0,87392.0,4.71171631]
[1769398420352,0.01144204,87397.0,87392.0,4.71007341]
[1769398420506,0.01144204,87397.0,87392.0,4.70819581]
[1769398420709,0.01144204,87397.0,87392.0,4.70655291]
[1769398420910,0.0114419,87398.0,87392.0,4.70467531]
[1769398421108,0.01144204,87397.0,87392.0,4.70279771]
[1769398421451,0.0114423,87395.0,87392.0,4.69998131]
[1769398421654,0.0114423,87395.0,87392.0,4.69810371]
[1769398421878,0.0114423,87395.0,87392.0,4.69622611]
[1769398422085,0.0114423,87395.0,87392.0,4.69434851]
[1769398422212,0.0114423,87395.0,87392.0,4.69247091]
[1769398422413,0.0114423,87395.0,87392.0,4.69059331]
[1769398422665,0.0114423,87395.0,87392.0,4.68871571]
[1769398422868,0.0114423,87395.0,87392.0,4.68683811]
[1769398423046,0.0114423,87395.0,87392.0,4.68542991]
[1769398423372,0.0114423,87395.0,87392.0,4.68261351]
[1769398423577,0.0114423,87395.0,87392.0,4.68097061]
[1769398423775,0.0114423,87395.0,87392.0,4.67909301]
[1769398423983,0.0114423,87395.0,87392.0,4.67721541]
[1769398424142,0.0114423,87395.0,87392.0,4.67557251]
[1769398424345,0.0114423,87395.0,87392.0,4.6699841]
[1769398425067,0.12755563,87395.0,87392.0,4.6699841]
[1769398425275,0.12755563,87395.0,87392.0,4.6695147]
[1769398425422,0.12761306,87395.0,87392.0,4.6676371]